[Event "European Women-ch 2023"]
[Site "Petrovac"]
[Date "2023.03.23"]
[Round "6.23"]
[White "Zhapova, Yana"]
[Black "Koridze, Lile"]
[Result "0-1"]
[ECO "B51"]
[WhiteElo "2269"]
[BlackElo "2122"]
[Annotator "TA"]
[PlyCount "70"]
[EventDate "2023.03.15"]
[EventType "swiss"]
[EventCountry "MNE"]
[SourceTitle "playchess.com"]
[Source "ChessBase"]
[SourceQuality "1"]
[TimeControl "40/5400+30:1800+30"]

{[%evp 9,70,16,22,25,20,22,25,12,63,49,50,30,129,118,100,8,6,-38,-20,-28,-19,-13,-16,-29,0,0,0,0,-14,-63,-64,-54,-75,-56,-66,-80,-67,-60,-43,-43,-56,-67,-49,-86,-70,-123,-114,-102,-61,-145,-87,-466,-466,-466,-466,-473,-464,-456,-453,-445,-445,-29983,-29984]} 1. e4 {[%emt 0:00:03]} c5 {[%emt 0:00:03]} 2. Nf3 {[%emt 0:00:13]} d6 {[%emt 0:00:03]} 3. Bb5+ {[%emt 0:00:10]} Nd7 {[%emt 0:00:05]} 4. Ba4 {[%emt 0:00:13]} Ngf6 {[%emt 0:01:29]} 5. O-O {[%emt 0:00:21]} g6 {[%emt 0:04:55]} 6. Re1 {[%emt 0:00:25] B51: Sicilian: Moscow Variation (3 Bb5+) without 3...Bd7.} Bg7 {[%emt 0:00:22]} 7. c3 {[%emt 0:01:02]} O-O {[%emt 0:02:12]} 8. d4 {[%emt 0:00:18] White has an edge.} e6 {[%emt 0:07:57]} (8... Qc7 $11) 9. Bf4 $14 {[%emt 0:10:14]} Qb6 {[%emt 0:08:22] [#]} 10. Na3 $146 {[%emt 0:13:42] Nc4 is the strong threat.} ({Predecessor:} 10. Nbd2 Qa6 11. Qb3 d5 12. exd5 Nxd5 13. Nc4 cxd4 14. Bd6 b6 15. Bc6 dxc3 16. Bxa8 cxb2 {0-1 Shubin,K (2473)-Vidit,S (2727) Titled Tuesday intern op 14th Dec blitz 2021 (9)}) 10... d5 {[%emt 0:07:30] [#] Prevents Nc4.} (10... cxd4 $1 $11 11. cxd4 d5) 11. exd5 $1 $16 {[%emt 0:09:59][%mdl 64] Remove Defender} Nxd5 {[%emt 0:00:37][%cal Bf6d5,Bd5c7,Bc7e8][%mdl 32]} 12. Bg3 {[%emt 0:01:02]} (12. Nc4 $16 Qa6 13. Qb3 cxd4 14. cxd4) 12... cxd4 $1 $11 {[%emt 0:05:02]} ({Don't take} 12... Qxb2 13. Nc4 Qxc3 14. Rc1 $18) 13. c4 {[%emt 0:10:36]} Nc7 {[%emt 0:15:37] Black wants to play ...Nc5.} 14. Rb1 {[%emt 0:08:15]} Nc5 {[%emt 0:05:16] With the idea ...f6.} 15. b4 $1 {[%emt 0:01:26]} Nxa4 {[%emt 0:05:45]} 16. Qxa4 {[%emt 0:00:02]} Ne8 {[%emt 0:04:07]} 17. Rbd1 {[%emt 0:03:52]} a5 $1 {[%emt 0:01:57]} 18. Nc2 {[%emt 0:05:34][%cal Rf3d4]} Nd6 $1 {[%emt 0:04:22]} 19. Nfxd4 {[%emt 0:12:15]} (19. c5 $11 Qb5 20. Qb3) 19... Nxc4 $15 {[%emt 0:02:09] ...Nb2 would be deadly.} 20. Qb3 {[%emt 0:00:12] Dodges Nb2} e5 $1 {[%emt 0:00:47]} 21. Qxc4 {[%emt 0:04:17]} exd4 {[%emt 0:00:05]} 22. bxa5 {[%emt 0:01:18]} Qxa5 {[%emt 0:00:58] White must now prevent ...Qc3.} 23. Nxd4 {[%emt 0:01:23]} Bg4 {[%emt 0:06:18]} (23... Qxa2 {simplifies} 24. Qb5 Qa4 25. Qxa4 Rxa4 26. Nb5 Bg4) 24. f3 {[%emt 0:03:04]} Bd7 {[%emt 0:00:56][%cal Of8c8]} 25. Nb3 {[%emt 0:01:27]} Qa4 {[%emt 0:00:25]} 26. Qc7 {[%emt 0:01:14]} Bc6 {[%emt 0:00:47] This pair of bishops is nice.} 27. Bf2 {[%emt 0:01:47]} (27. Re2 $15) 27... Qxa2 $17 {[%emt 0:00:29]} 28. Nd4 {[%emt 0:00:17]} Qa5 {[%emt 0:01:40]} 29. Qf4 {[%emt 0:02:41]} ({White should play} 29. Qxa5 $15 Rxa5 30. Nxc6 bxc6 31. Rc1) 29... Rad8 {[%emt 0:02:41]} (29... Ba4 $142 30. Rb1 Rfe8) 30. Bh4 $2 {[%emt 0:01:41][%mdl 8192] Now White is beyond hope.} (30. Nxc6 $17 bxc6 31. h3) 30... Rxd4 $19 {[%emt 0:06:28]} 31. Rxd4 {[%emt 0:00:58]} g5 {[%emt 0:00:08]} ({Not} 31... Bxd4+ 32. Qxd4 Qa4 33. Qf6 $11) 32. Qd6 {[%emt 0:03:46]} Bxd4+ {[%emt 0:01:49]} 33. Qxd4 {[%emt 0:00:05]} gxh4 {[%emt 0:01:44]} 34. Qxh4 {[%emt 0:01:09]} f6 {[%emt 0:00:58]} 35. Re7 {[%emt 0:00:38] [#]} (35. Rc1 $19) 35... Qc5+ {[%emt 0:00:05] Weighted Error Value: White=0.51/Black=0.14 (very precise)} 0-1

[Event "European Women-ch 2023"]
[Site "Petrovac"]
[Date "2023.03.23"]
[Round "6.23"]
[White "Maras, Marija Mia"]
[Black "Bakalarz, Grazyna"]
[Result "0-1"]
[ECO "A22"]
[WhiteElo "1051"]
[BlackElo "1847"]
[Annotator "NA RC COMBH"]
[PlyCount "54"]
[EventDate "2023.03.15"]
[EventType "swiss"]
[EventCountry "MNE"]
[SourceTitle "playchess.com"]
[Source "ChessBase"]
[SourceQuality "1"]
[TimeControl "40/5400+30:1800+30"]

1. c4 {[%emt 0:00:02]} e5 {[%emt 0:00:15]} 2. Nc3 {[%emt 0:00:04]} Nf6 {[%emt 0:00:12]} 3. e3 {[%emt 0:00:06]} d5 {[%emt 0:10:21]} 4. cxd5 {[%emt 0:00:25]} Nxd5 {[%emt 0:00:17]} 5. Nge2 {[%emt 0:00:07]} Nc6 {[%emt 0:07:04]} 6. g3 {[%emt 0:01:38]} Ndb4 {[%emt 0:02:19]} 7. Ng1 {[%emt 0:02:47]} Nd3+ {[%emt 0:01:19]} 8. Bxd3 {[%emt 0:00:14]} Qxd3 {[%emt 0:00:05]} 9. a3 {[%emt 0:02:17]} Be6 {[%emt 0:01:33]} 10. Qe2 {[%emt 0:03:10]} O-O-O {[%emt 0:00:42]} 11. b4 {[%emt 0:07:28]} Be7 {[%emt 0:05:58]} 12. Bb2 {[%emt 0:02:59]} Qc2 {[%emt 0:03:26]} 13. Nd1 {[%emt 0:05:41]} Qe4 {[%emt 0:08:10]} 14. Qf3 {[%emt 0:02:35]} Qxf3 {[%emt 0:02:15]} 15. Nxf3 {[%emt 0:00:07]} Bd5 {[%emt 0:00:22]} 16. Ke2 {[%emt 0:02:03]} Bf6 {[%emt 0:02:50]} 17. Bc3 {[%emt 0:10:42]} Rhe8 {[%emt 0:03:03]} 18. Nb2 {[%emt 0:04:50]} Nd4+ {[%emt 0:08:27]} 19. Bxd4 {[%emt 0:03:49]} exd4 {[%emt 0:00:16]} 20. Rhe1 {[%emt 0:01:40]} d3+ {[%emt 0:00:46]} 21. Kf1 {[%emt 0:07:05]} Bxb2 {[%emt 0:00:36]} 22. Rab1 {[%emt 0:01:17]} Bxf3 {[%emt 0:01:30]} 23. Rxb2 {[%emt 0:00:09]} Re6 {[%emt 0:00:57]} 24. Rb3 {[%emt 0:01:35]} Rc6 {[%emt 0:00:55]} 25. a4 {[%emt 0:00:50]} Rc2 {[%emt 0:00:47]} 26. Rbb1 {[%emt 0:01:58]} Rxd2 {[%emt 0:00:27]} 27. Ra1 {[%emt 0:01:24]} Rc2 {[%emt 0:01:27]} 0-1

[Event "European Women-ch 2023"]
[Site "Petrovac"]
[Date "2023.03.23"]
[Round "6.24"]
[White "Froewis, Annika"]
[Black "Eric, Jovana"]
[Result "1/2-1/2"]
[ECO "A45"]
[WhiteElo "2123"]
[BlackElo "2230"]
[Annotator "TA"]
[PlyCount "149"]
[EventDate "2023.03.15"]
[EventType "swiss"]
[EventCountry "MNE"]
[SourceTitle "playchess.com"]
[Source "ChessBase"]
[SourceQuality "1"]
[TimeControl "40/5400+30:1800+30"]

{[%evp 9,149,4,16,5,20,18,18,10,32,0,2,7,37,-60,-60,-52,-47,-58,-45,-52,0,0,0,-35,0,-21,0,-15,-18,-14,-16,-27,-5,-34,-22,-32,-37,-44,-39,-58,0,-15,0,-54,-15,-84,25,35,23,-52,-60,-47,-45,-98,-58,-47,0,6,0,-72,-63,-67,-18,-14,-35,-9,-25,-78,0,-47,0,-24,0,0,0,0,0,0,28,37,35,0,69,0,0,-50,-41,-32,-32,-42,0,-18,0,0,0,0,0,-8,33,-233,92,0,0,0,0,0,0,0,320,-59,74,0,0,0,0,-175,0,0,0,0,187,0,0,0,0,0,0,0,0,22,22,0,0,0,0,164,0,0,0,0,0,0]} 1. d4 {[%emt 0:00:03] ChessBase II} Nf6 {[%emt 0:00:08]} 2. Bf4 {[%emt 0:00:09]} e6 {[%emt 0:00:16]} 3. e3 {[%emt 0:00:45]} b6 {[%emt 0:00:45]} 4. c3 {[%emt 0:02:13]} Bb7 {[%emt 0:00:32]} 5. Nd2 {[%emt 0:00:42]} g6 {[%emt 0:01:09]} 6. h3 {[%emt 0:04:18] A45: Trompowsky Attack.} Bg7 {[%emt 0:00:38]} 7. Ngf3 {[%emt 0:00:39]} d6 {[%emt 0:01:11]} 8. Qc2 {[%emt 0:05:17]} Nbd7 {[%emt 0:02:57]} 9. e4 {[%emt 0:04:12]} O-O {[%emt 0:08:22][%cal Oe6e5]} 10. Bd3 {[%emt 0:07:08] [#]} Re8 $146 {[%emt 0:05:40]} (10... e5 $5 {[%cal Re5f4]} 11. Bg3 (11. dxe5 dxe5 12. Be3 Qe7 $11) 11... Nh5 $11) ({Predecessor:} 10... Qe7 11. O-O Nh5 12. Bg5 f6 13. Be3 e5 14. Rfe1 Kh8 15. Nc4 Rae8 16. Bd2 Qf7 {0-1 Oney,R (1763)-Abergel,T (2475) Sautron op 19th 2019 (1.3)}) 11. O-O-O {[%emt 0:05:00]} (11. Bh2 $14) 11... e5 $15 {[%emt 0:03:28]} 12. dxe5 {[%emt 0:02:44]} dxe5 {[%emt 0:00:06]} 13. Bg5 {[%emt 0:01:32]} h6 {[%emt 0:06:27]} 14. Be3 {[%emt 0:10:16]} Nh5 {[%emt 0:06:37]} (14... Qe7 $1 $15) 15. g3 $11 {[%emt 0:08:30]} Qe7 {[%emt 0:02:24]} 16. Nh4 {[%emt 0:03:57]} Kh7 {[%emt 0:05:21]} 17. Rhg1 {[%emt 0:03:53]} Nc5 {[%emt 0:01:39]} 18. Be2 {[%emt 0:00:57]} Nf6 {[%emt 0:03:07]} 19. f3 $1 {[%emt 0:02:35]} a5 {[%emt 0:02:58]} 20. Kb1 {[%emt 0:06:23]} a4 {[%emt 0:04:09]} 21. Bf2 {[%emt 0:06:52]} Bc6 $36 {[%emt 0:06:36][%mdl 2048] Black is more active.} 22. g4 {[%emt 0:01:20]} Ne6 {[%emt 0:00:28]} 23. Ng2 {[%emt 0:00:49]} b5 {[%emt 0:01:29]} 24. a3 {[%emt 0:01:28]} Bd7 {[%emt 0:00:59]} 25. h4 {[%emt 0:03:18]} c5 {[%emt 0:01:55]} 26. Ka1 {[%emt 0:01:35]} (26. h5 $11) 26... Rec8 {[%emt 0:06:51][%cal Oe6d4]} 27. Bg3 {[%emt 0:10:12]} (27. h5 $11) 27... Ne8 {[%emt 0:01:39]} (27... Nd4 $1 $17 {[%cal Rd4c2]} 28. cxd4 cxd4) 28. Ne3 {[%emt 0:00:55][%cal Oe3f5]} Nf4 {[%emt 0:11:25]} 29. Bf1 {[%emt 0:00:12]} ({White should try} 29. Bxf4 $11 exf4 30. Nd5 Qxh4 31. Nb6) 29... Nc7 $15 {[%emt 0:01:25]} 30. Rh1 {[%emt 0:00:51]} Kg8 {[%emt 0:01:35]} (30... Rab8 {is interesting.} 31. h5 g5 32. Nf5 Qf8) 31. Rh2 {[%emt 0:01:50]} ({White should play} 31. Bxf4 $15 exf4 32. Nd5) 31... Be6 {[%emt 0:01:40]} 32. c4 {[%emt 0:01:49]} bxc4 {[%emt 0:01:30]} (32... b4 $15) 33. Bxc4 $11 {[%emt 0:00:18]} Rcb8 {[%emt 0:01:48]} 34. Ka2 {[%emt 0:01:00]} (34. h5 $11 {remains equal.}) 34... Nb5 {[%emt 0:01:27] ...Nd4 would be deadly.} 35. Bxe6 {[%emt 0:00:58]} Nxe6 {[%emt 0:00:39]} (35... Qxe6+ $15 {deserves consideration.} 36. Qc4 Qb6) 36. Nd5 {[%emt 0:00:26]} Qb7 {[%emt 0:00:07]} 37. Nc4 {[%emt 0:00:39]} Nbd4 {[%emt 0:02:04]} 38. Qc3 {[%emt 0:01:06]} (38. Qd3 $1 $11 {keeps the balance.}) 38... f6 {[%emt 0:04:53]} (38... Nf4 $17 39. Bxf4 exf4) 39. Rd3 {[%emt 0:02:13] Active counter play!} (39. Nce3 $11) 39... Qa7 {[%emt 0:01:40]} 40. Qc1 {[%emt 0:00:00][%cal Og4g5]} Rb3 {[%emt 0:00:00]} (40... Qa6 {keeps more tension.} 41. g5 Rb3 42. Rxd4 Nxd4 43. gxf6 Rxf3 44. Bxe5 Bxf6 45. Bxf6 Rxf6 46. Rg2 Re6) 41. Rxb3 {[%emt 0:09:21]} axb3+ {[%emt 0:03:04]} 42. Kb1 {[%emt 0:00:26]} Qa6 {[%emt 0:05:12]} 43. Rf2 {[%emt 0:06:36]} Nc2 {[%emt 0:01:21]} 44. Qf1 {[%emt 0:00:43]} Kh7 {[%emt 0:07:02]} 45. Qd3 {[%emt 0:02:57]} Ncd4 {[%emt 0:06:34]} (45... Nb4 $1 $11 46. Qxb3 (46. axb4 $2 Qa1#) 46... Nd4) 46. Qc3 {[%emt 0:08:44]} ({Better is} 46. f4 $14) 46... Rd8 {[%emt 0:01:16]} 47. Kc1 {[%emt 0:01:02]} (47. Qd3 $11) 47... f5 $15 {[%emt 0:06:08]} 48. Qd3 {[%emt 0:01:16][%cal Rg4f5]} (48. Nxe5 $2 f4 49. Bh2 Ne2+ 50. Rxe2 Qxe2 $19) (48. Bxe5 Bxe5 49. Nxe5 fxg4 $17) 48... f4 {[%emt 0:01:46]} 49. Bh2 {[%emt 0:00:05]} Qb5 {[%emt 0:00:43]} 50. Bg1 {[%emt 0:00:34]} Ra8 {[%emt 0:00:17]} (50... Nc2 $5 {[%cal Rc2e3]} 51. Qf1 (51. Nxe5 c4 $17) 51... Ned4 $11) 51. Kb1 {[%emt 0:03:17]} Ra4 {[%emt 0:01:00]} 52. Ndb6 {[%emt 0:00:32]} Ra7 {[%emt 0:00:28]} (52... Ra6 $5 53. Nd5 $8 Nc2 54. Rxc2 bxc2+ 55. Kxc2 (55. Qxc2 Ra7 $11) 55... Qe8 $11) 53. Nd5 {[%emt 0:00:37] Against Bf6} Nc7 {[%emt 0:00:36] Threatens to win with ...Nxd5.} (53... Ra4 $5 54. Ndb6 $8 Ra7 $11) 54. h5 $2 {[%emt 0:00:44][%mdl 8192]} (54. Nc3 $1 $14 {keeps the upper hand.} Qb7 55. Rf1) 54... g5 $2 {[%emt 0:00:38]} (54... Nxd5 $1 $19 55. exd5 e4 56. fxe4 (56. Qxe4 $2 Qxc4 57. Bh2 Kg8 $19) (56. hxg6+ $2 Kg8 $19) 56... Ra4) 55. Nc3 {[%emt 0:00:46]} (55. Rf1 $16) 55... Qa6 $11 {[%emt 0:00:11]} 56. Rf1 {[%emt 0:00:21]} Ncb5 {[%emt 0:00:28] ...Nd6 is the strong threat.} 57. Nd5 {[%emt 0:00:52]} Nd6 $1 {[%emt 0:00:37]} 58. Rc1 {[%emt 0:00:28] Black must now prevent Bxd4.} (58. Bxd4 $2 Nxc4 59. Rd1 exd4 $19) 58... Qb5 $2 {[%emt 0:00:25][%mdl 8192]} (58... Nxc4 $11 {and Black has nothing to worry.} 59. Rxc4 Nxf3 60. Bxc5 Ra8 {[%mdl 64] Decoy}) 59. Rc3 $2 {[%emt 0:00:23] [#]} (59. Bxd4 $18 cxd4 60. Nb4 Nxc4 61. Rxc4) 59... Nxf3 {[%emt 0:01:45]} (59... Nxc4 $1 $15 {stays ahead.} 60. Bxd4 (60. Qxc4 Qxc4) 60... Nd2+ 61. Qxd2 exd4) 60. Qxf3 {[%emt 0:01:01]} (60. Nxd6 $16 Qxd3+ 61. Rxd3 Nxg1 62. Rxb3) 60... Nxc4 {[%emt 0:00:05]} 61. Qd3 {[%emt 0:00:25] Inhibits Nd2+.} Ra4 {[%emt 0:01:00]} 62. Kc1 $2 {[%emt 0:00:16] [#]} (62. Nc7 $11 Nxa3+ 63. bxa3 Qxd3+ 64. Rxd3 Rxe4 65. Bf2 (65. Rxb3 $2 Re1+ 66. Kc2 Rxg1 $19)) 62... Nd6 $2 {[%emt 0:00:17]} (62... Qa5 63. Rxb3 Qe1+ 64. Kc2 $16) (62... Nxa3 $1 $19 {And now ...c4 would win.} 63. Rxb3 (63. bxa3 $2 c4 $19) 63... Qxd3 {[%mdl 64] Deflection} 64. Rxd3 Nb5) 63. Qxb5 {[%emt 0:00:48]} Nxb5 {[%emt 0:00:04]} 64. Rxb3 {[%emt 0:00:15]} Rxe4 $2 {[%emt 0:00:10] [#]} 65. Rxb5 $2 {[%emt 0:00:44]} (65. Kd1 $1 $18) 65... Re1+ {[%emt 0:00:04]} 66. Kd2 {[%emt 0:00:16]} Rxg1 {[%emt 0:00:06][%mdl 4096] Endgame KRB-KRN} 67. Rb7 {[%emt 0:00:17]} e4 {[%emt 0:02:20] Strongly threatening ...e3+.} (67... Rxg4 $2 68. Nf6+ Kh8 69. Rb8+ $18) 68. Nf6+ {[%emt 0:00:23]} Kh8 {[%emt 0:00:04]} 69. Rb8+ {[%emt 0:00:54]} Bf8 {[%emt 0:00:04] aiming for ...e3+.} 70. Rb7 {[%emt 0:00:41][%csl Gf6][%cal Rb7h7][%mdl 1024] White has compensation.} (70. Nxe4 $5 {[%cal Rb8f8]} Kg8 71. Nxc5 $14) 70... e3+ {[%emt 0:00:53]} (70... Rg2+ 71. Ke1 Bg7 72. Rb8+ $14 (72. Nxe4 Bxb2 73. Rb6 Kh7 $15) (72. Nxe4 Bxb2 73. Rb6 Kh7 $11)) 71. Kd3 {[%emt 0:00:21][%csl Gf6][%cal Rb7h7]} (71. Ke2 $5 Bg7 $8 72. Rb8+ Bf8 73. Rb7 $11 (73. Rxf8+ Kg7 $11)) 71... Bg7 {[%emt 0:00:49]} 72. Rb8+ {[%emt 0:00:23]} Bf8 {[%emt 0:00:04]} 73. Rb7 $1 {[%emt 0:00:33][%csl Gf6][%cal Rb7h7] The position is equal.} (73. Rxf8+ Kg7 74. Rc8 Rd1+ 75. Ke2 Rd2+ 76. Ke1 f3 77. Ne8+ Kf7 $19) 73... Bg7 {[%emt 0:00:11]} 74. Rb8+ {[%emt 0:00:09]} Bf8 {[%emt 0:00:05]} 75. Rb7 $1 {[%emt 0:00:04] An exciting game.   Weighted Error Value: White=0.36/Black=0.30} (75. Rxf8+ $2 {is the wrong capture.} Kg7 $19) 1/2-1/2

[Event "European Women-ch 2023"]
[Site "Petrovac"]
[Date "2023.03.23"]
[Round "6.24"]
[White "Petrovska, Katerina"]
[Black "Ivanovic, Tara"]
[Result "1/2-1/2"]
[ECO "C28"]
[WhiteElo "1907"]
[BlackElo "1472"]
[Annotator "TA"]
[PlyCount "60"]
[EventDate "2023.03.15"]
[EventType "swiss"]
[EventCountry "MNE"]
[SourceTitle "playchess.com"]
[Source "ChessBase"]
[SourceQuality "1"]
[TimeControl "40/5400+30:1800+30"]

{[%evp 9,60,3,10,7,37,0,0,0,0,0,33,12,37,0,11,0,26,35,27,6,78,70,110,85,87,84,87,20,24,22,14,-3,-5,0,0,-11,-11,-11,-12,-23,-16,-35,0,4,4,0,0,-78,-18,-18,-20,-20,0]} 1. e4 {[%emt 0:00:02]} e5 {[%emt 0:00:04]} 2. Bc4 {[%emt 0:00:06]} Nf6 {[%emt 0:01:27]} 3. d3 {[%emt 0:00:05]} Be7 {[%emt 0:02:21]} 4. Nc3 {[%emt 0:00:43]} Nc6 {[%emt 0:01:01]} 5. f4 {[%emt 0:01:48]} exf4 {[%emt 0:02:46]} 6. Bxf4 {[%emt 0:00:18] e5 is the strong threat.} d6 {[%emt 0:00:15]} 7. h3 {[%emt 0:18:32]} Be6 {[%emt 0:10:20]} 8. Bxe6 {[%emt 0:09:43]} fxe6 {[%emt 0:00:03][%cal Bf7e6,Be6e5][%mdl 32]} 9. Nf3 {[%emt 0:00:06]} e5 {[%emt 0:03:28]} 10. Be3 {[%emt 0:01:15]} Qd7 {[%emt 0:03:28]} 11. Qd2 {[%emt 0:02:40]} O-O-O {[%emt 0:04:21]} 12. O-O-O {[%emt 0:00:06]} Rdf8 {[%emt 0:03:30]} 13. d4 {[%emt 0:06:27]} exd4 {[%emt 0:03:40]} 14. Nxd4 {[%emt 0:00:56]} Nxd4 {[%emt 0:03:43]} (14... Kb8 $11) 15. Qxd4 $16 {[%emt 0:01:56]} b6 {[%emt 0:01:32]} 16. Qc4 {[%emt 0:06:01] [#] Against Qc6. aiming for e5.} Kb7 {[%emt 0:08:16]} 17. e5 {[%emt 0:03:56]} Ne8 {[%emt 0:02:19]} 18. Nb5 {[%emt 0:11:53] White is much more active. The black rooks are badly placed.} (18. Rhg1 $16) 18... Qc6 $11 {[%emt 0:10:38]} 19. Qxc6+ {[%emt 0:05:23]} ({Much worse is} 19. Qa4 a6 20. Nc3 dxe5 21. Qxc6+ Kxc6 $17) 19... Kxc6 {[%emt 0:00:04]} 20. exd6 {[%emt 0:06:28]} Nxd6 {[%emt 0:00:28]} 21. Nd4+ {[%emt 0:04:16]} Kb7 {[%emt 0:06:02]} 22. Rhf1 {[%emt 0:02:02]} Rxf1 {[%emt 0:06:12]} 23. Rxf1 {[%emt 0:00:02]} Bf6 {[%emt 0:02:31] ...Nc4 would be deadly.} 24. c3 {[%emt 0:05:28]} Re8 {[%emt 0:02:02]} 25. Bf4 {[%emt 0:00:11]} Re4 {[%emt 0:03:07]} 26. Bxd6 {[%emt 0:02:35]} cxd6 {[%emt 0:03:51]} 27. Rd1 {[%emt 0:00:27]} Bxd4 {[%emt 0:03:13]} 28. cxd4 {[%emt 0:02:37]} (28. Rxd4 $11 {keeps the balance.} Rxd4 29. cxd4) 28... Re2 {[%emt 0:00:50]} (28... Kc6 $17) 29. g4 {[%emt 0:02:53]} Re3 {[%emt 0:01:05]} 30. Rf1 {[%emt 0:00:07]} Re7 {[%emt 0:01:42] Weighted Error Value: White=0.19 (very precise) /Black=0.18 (very precise)} 1/2-1/2